Workbook

Sheet Conversions d'unités
J2: Conversion d'unités / Utilitaires | O2: version 01/2019
J3: Thermique / Fluides
O4: =TODAY() -> 2019-01-14
B6: ? | C6: CONVERSIONS
G10: valeur à convertir | H10: unité | K10: valeur convertie | L10: unité
C11: Température | D11: : | H11: °C | J11: = | K11: =calculs!D17 -> 0 | L11: °C
C14: Pression | D14: : | H14: kPa | J14: = | K14: =calculs!E21 -> 0 | L14: atm
C17: Puissance | D17: : | H17: W | J17: = | K17: =calculs!E25 -> 0 | L17: th/h
C20: Energie | D20: : | H20: th | J20: = | K20: =calculs!E29 -> 0 | L20: mth
C23: Débit | D23: : | H23: m3/h | J23: = | K23: =calculs!E33 -> 0 | L23: l/s
C26: Longueur | D26: : | H26: m | J26: = | K26: =calculs!E5 -> 0 | L26: cm
C29: Surface | D29: : | H29: m2 | J29: = | K29: =calculs!E9 -> 0 | L29: m2
C32: Volume | D32: : | H32: dm3 | J32: = | K32: =calculs!E13 -> 0 | L32: litres
C34: POUVOIR CALORIFIQUE
C37: Fioul domestique | D37: : | E37: La combustion de | J37: litres | K37: fournit | L37: =calculs!D48 -> 0 | M37: kWh PCI | O37: =calculs!E48 -> 0 | P37: kWh PCS
G39: kWh PCI sont consommés en brûlant | L39: =calculs!D49 -> 0 | N39: litres
C42: Gaz naturel | D42: : | E42: La combustion de | J42: Nm3 | K42: fournit | L42: =calculs!D50 -> 0 | M42: kWh PCI | O42: =calculs!E50 -> 0 | P42: kWh PCS
G44: kWh PCI sont consommés en brûlant | L44: =calculs!D51 -> 0 | N44: Nm3
C49: Propane | D49: : | E49: La combustion de | J49: kg | K49: fournit | L49: =calculs!D52 -> 0 | M49: kWh PCI | O49: =calculs!E52 -> 0 | P49: kWh PCS
G51: kWh PCI sont consommés en brûlant | L51: =calculs!D53 -> 0 | N51: kg
C56: Butane | D56: : | E56: La combustion de | J56: kg | K56: fournit | L56: =calculs!D54 -> 0 | M56: kWh PCI | O56: =calculs!E54 -> 0 | P56: kWh PCS
G58: kWh PCI sont consommés en brûlant | L58: =calculs!D55 -> 0 | N58: kg
C60: DIAMETRES TUBES | N60: consommations hors rendement
E62: Pouce | H62: mm
C64: Conversion pouces / mm | D64: : | E64: 1" | G64: = | H64: =Tableaux2!G3 -> 25.4
E66: Ø nominal | H66: Appellation | K66: Ø ext. | L66: Ø int. | N66: DN
C67: Tube en acier | E67: pouce | H67: courante | K67: mm | L67: mm
C68: Correspondance pouces / mm | D68: : | E68: 1" | G68: = | H68: =calculs!D43 -> 26 * 34 | K68: =calculs!B43 -> 33.7 | L68: =calculs!C43 -> 27.9 | N68: =calculs!E43 -> 25

Sheet Tableaux2 (hidden)
A1: conversion pouces - mm
A2: 1/16"_ | B2: 1.5875 | C2: mm | D2: 1/16" | F2: valeur choisie | G2: correspondance
A3: 1/8"_ | B3: 3.175 | D3: 1/8" | F3: =CONCATENATE(calculs!A40,"_") -> 1"_ | G3: =VLOOKUP(F3,A2:B17,2,0) -> 25.4
A4: 3/16"_ | B4: 4.7225 | D4: 3/16"
A5: 1/4"_ | B5: 6.35 | D5: 1/4"
A6: 5/16"_ | B6: 7.9375 | D6: 5/16"
A7: 3/8"_ | B7: 9.525 | D7: 3/8"
A8: 7/16"_ | B8: 11.1125 | D8: 7/16"
A9: 1/2"_ | B9: 12.7 | D9: 1/2"
A10: 9/16"_ | B10: 14.2875 | D10: 9/16"
A11: 5/8"_ | B11: 15.875 | D11: 5/8"
A12: 11/16"_ | B12: 17.4625 | D12: 11/16"
A13: 3/4"_ | B13: 19.05 | D13: 3/4"
A14: 13/16"_ | B14: 20.6375 | D14: 13/16"
A15: 7/8"_ | B15: 22.225 | D15: 7/8"
A16: 15/16"_ | B16: 23.8125 | D16: 15/16"
A17: 1"_ | B17: 25.4 | D17: 1"
A19: tubes acier - correspondance en pouce et mm
A20: diametres nominaux
A21: int. En pouce | B21: ext. Mm | C21: ep | D21: int. Mm | E21: app. Cour. | F21: DN | I21: valeur choisie | J21: ext | K21: int | L21: app. Cour | M21: DN
A22: 1/4"_ | B22: 13.5 | C22: 2 | D22: =B22-2*C22 -> 9.5 | E22: 8 * 13 | F22: 8 | G22: 1/4" | I22: =CONCATENATE(calculs!A43,"_") -> 1"_ | J22: =VLOOKUP(I22,A22:B33,2,0) -> 33.7 | K22: =VLOOKUP(I22,A22:D33,4,0) -> 27.9 | L22: =VLOOKUP(I22,A22:E33,5,0) -> 26 * 34 | M22: =VLOOKUP(I22,A22:F33,6,0) -> 25
A23: 3/8"_ | B23: 17.2 | C23: 2 | D23: =B23-2*C23 -> 13.2 | E23: 12 * 17 | F23: 12 | G23: 3/8"
A24: 1/2"_ | B24: 21.3 | C24: 2.3 | D24: 16.7 | E24: 15 * 21 | F24: 15 | G24: 1/2"
A25: 3/4"_ | B25: 26.9 | C25: 2.3 | D25: 22.3 | E25: 20 * 27 | F25: 20 | G25: 3/4"
A26: 1"_ | B26: 33.7 | C26: 2.9 | D26: 27.9 | E26: 26 * 34 | F26: 25 | G26: 1"
A27: 1"1/4_ | B27: 42.4 | C27: 2.9 | D27: 36.6 | E27: 33 * 42 | F27: 32 | G27: 1"1/4
A28: 1"1/2_ | B28: 48.3 | C28: 2.9 | D28: 42.5 | E28: 40 * 49 | F28: 40 | G28: 1"1/2
A29: 2"_ | B29: 60.3 | C29: 3.2 | D29: 53.9 | E29: 50 * 60 | F29: 50 | G29: 2"
A30: 2"1/2_ | B30: 76.1 | C30: 3.2 | D30: 69.7 | E30: 66 * 76 | F30: 65 | G30: 2"1/2
A31: 3"_ | B31: 88.9 | C31: 3.2 | D31: 82.5 | E31: 80 * 90 | F31: 80 | G31: 3"
A32: 3"1/2_ | B32: 101.6 | C32: 3.6 | D32: 94.4 | E32: 90 * 102 | F32: 90 | G32: 3"1/2
A33: 4"_ | B33: 114.3 | C33: 3.6 | D33: 107.1 | E33: 102 * 114 | F33: 100 | G33: 4"
A35: equivalence pouces /mm
A36: désignation des filetages au pas du gaz
A37: diam nominal en pouces | B37: appelation courante | C37: diam ext théorique du filetage
A38: 1/8_ | B38: 5 * 10 | C38: 9.72
A39: 1/4_ | B39: 8 * 13 | C39: 13.15
A40: 3/8_ | B40: 12 * 17 | C40: 16.66
A41: 1/2_ | B41: 15 * 21 | C41: 20.95
A42: 5/8_ | B42: 17 * 23 | C42: 22.91
A43: 3/4_ | B43: 20 * 27 | C43: 26.44
A44: 7/8_ | B44: 24 * 31 | C44: 30.2
A45: 1"_ | B45: 26 * 34 | C45: 33.24
A46: 1"1/4_ | B46: 33 * 42 | C46: 41.91
A47: 1"1/2_ | B47: 40 * 49 | C47: 47.8
A48: 1"3/4_ | B48: 46 * 55 | C48: 53.74
A49: 2"_ | B49: 50 * 60 | C49: 59.61
A50: 2"1/4_ | B50: 60 * 70 (anc. norme) | C50: 69.3
A51: 2"1/2_ | B51: 66 * 76 | C51: 75.18
A52: 2"3/4_ | B52: 72 * 82 | C52: 81.53
A53: 3"_ | B53: 80 * 90 | C53: 87.88
A54: 3"1/2_ | B54: 90 * 102 | C54: 100.33
A55: 4"_ | B55: 102 * 114 | C55: 113.03

Sheet Tableaux (hidden)
A1: Longueur
A3: Unité 1 | B3: Unité 2 | C3: Coeff | E3: Unité 1 | F3: Unité 2 | G3: Coeff
A4: mm_ | B4: mm_ | C4: 1 | E4: =CONCATENATE(calculs!B5,"_") -> m_ | F4: =CONCATENATE(calculs!C5,"_") -> cm_ | G4: =DGET(A3:C19,3,E3:F4) -> 100
A5: mm_ | B5: cm_ | C5: 0.1
A6: mm_ | B6: dm_ | C6: 0.01
A7: mm_ | B7: m_ | C7: 0.001
A8: cm_ | B8: mm_ | C8: 10
A9: cm_ | B9: cm_ | C9: 1
A10: cm_ | B10: dm_ | C10: 0.1
A11: cm_ | B11: m_ | C11: 0.01
A12: dm_ | B12: mm_ | C12: 100
A13: dm_ | B13: cm_ | C13: 10
A14: dm_ | B14: dm_ | C14: 1
A15: dm_ | B15: m_ | C15: 0.1
A16: m_ | B16: mm_ | C16: 1000
A17: m_ | B17: cm_ | C17: 100
A18: m_ | B18: dm_ | C18: 10
A19: m_ | B19: m_ | C19: 1
A21: Surface
A23: Unité 1 | B23: Unité 2 | C23: Coeff | E23: Unité 1 | F23: Unité 2 | G23: Coeff
A24: mm2_ | B24: mm2_ | C24: 1 | E24: =CONCATENATE(calculs!B9,"_") -> m2_ | F24: =CONCATENATE(calculs!C9,"_") -> m2_ | G24: =DGET(A23:C32,3,E23:F24) -> 1
A25: mm2_ | B25: cm2_ | C25: 0.01
A26: mm2_ | B26: m2_ | C26: 1e-06
A27: cm2_ | B27: mm2_ | C27: 100
A28: cm2_ | B28: cm2_ | C28: 1
A29: cm2_ | B29: m2_ | C29: 0.0001
A30: m2_ | B30: mm2_ | C30: =1/C26 -> 1000000
A31: m2_ | B31: cm2_ | C31: =1/C29 -> 10000
A32: m2_ | B32: m2_ | C32: 1
A34: Volume
A36: Unité 1 | B36: Unité 2 | C36: Coeff | E36: Unité 1 | F36: Unité 2 | G36: Coeff
A37: cm3_ | B37: cm3_ | C37: 1 | E37: =CONCATENATE(calculs!B13,"_") -> dm3_ | F37: =CONCATENATE(calculs!C13,"_") -> litres_ | G37: =DGET(A36:C52,3,E36:F37) -> 1
A38: cm3_ | B38: dm3_ | C38: 0.001
A39: cm3_ | B39: m3_ | C39: 1e-06
A40: cm3_ | B40: litres_ | C40: 0.001
A41: dm3_ | B41: cm3_ | C41: 1000
A42: dm3_ | B42: dm3_ | C42: 1
A43: dm3_ | B43: m3_ | C43: 0.001
A44: dm3_ | B44: litres_ | C44: 1
A45: m3_ | B45: cm3_ | C45: 1000000
A46: m3_ | B46: dm3_ | C46: 1000
A47: m3_ | B47: m3_ | C47: 1
A48: m3_ | B48: litres_ | C48: 1000
A49: litres_ | B49: cm3_ | C49: 1000
A50: litres_ | B50: dm3_ | C50: 1
A51: litres_ | B51: m3_ | C51: 0.001
A52: litres_ | B52: litres_ | C52: 1
A54: Pression
A56: Unité 1 | B56: Unité 2 | C56: Coeff | E56: Unité 1 | F56: Unité 2 | G56: Coeff
A57: Pa_ | B57: Pa_ | C57: 1 | E57: =CONCATENATE(calculs!B21,"_") -> kPa_ | F57: =CONCATENATE(calculs!C21,"_") -> atm_ | G57: =DGET(A56:C137,3,E56:F57) -> 0.00987
A58: Pa_ | B58: daPa_ | C58: 0.1
A59: Pa_ | B59: kPa_ | C59: =1/C75 -> 0.001
A60: Pa_ | B60: bar_ | C60: 1e-05
A61: Pa_ | B61: mbar_ | C61: 0.01
A62: Pa_ | B62: mmCE_ | C62: 0.102
A63: Pa_ | B63: mCE_ | C63: 0.000102
A64: Pa_ | B64: mmHg_ | C64: 0.0075
A65: Pa_ | B65: atm_ | C65: 9.87e-06
A66: daPa_ | B66: Pa_ | C66: 10
A67: daPa_ | B67: kPa_ | C67: 0.01
A68: daPa_ | B68: daPa_ | C68: 1
A69: daPa_ | B69: bar_ | C69: 0.0001
A70: daPa_ | B70: mbar_ | C70: 0.1
A71: daPa_ | B71: mmCE_ | C71: 1.02
A72: daPa_ | B72: mCE_ | C72: 0.00102
A73: daPa_ | B73: mmHg_ | C73: 0.075
A74: daPa_ | B74: atm_ | C74: 9.87e-05
A75: kPa_ | B75: Pa_ | C75: =100*C66 -> 1000
A76: kPa_ | B76: daPa_ | C76: =100*C68 -> 100
A77: kPa_ | B77: kPa_ | C77: 1
A78: kPa_ | B78: bar_ | C78: =100*C69 -> 0.01
A79: kPa_ | B79: mbar_ | C79: =C70*100 -> 10
A80: kPa_ | B80: mmCE_ | C80: =C71*100 -> 102
A81: kPa_ | B81: mCE_ | C81: =C72*100 -> 0.102
A82: kPa_ | B82: mmHg_ | C82: =C73*100 -> 7.5
A83: kPa_ | B83: atm_ | C83: =C74*100 -> 0.00987
A84: bar_ | B84: Pa_ | C84: 100000
A85: bar_ | B85: daPa_ | C85: 10000
A86: bar_ | B86: kPa_ | C86: =C85/100 -> 100
A87: bar_ | B87: bar_ | C87: 1
A88: bar_ | B88: mbar_ | C88: 1000
A89: bar_ | B89: mmCE_ | C89: 10200
A90: bar_ | B90: mCE_ | C90: 10.2
A91: bar_ | B91: mmHg_ | C91: 750
A92: bar_ | B92: atm_ | C92: 0.987
A93: mbar_ | B93: Pa_ | C93: 100
A94: mbar_ | B94: kPa_ | C94: =C95/100 -> 0.1
A95: mbar_ | B95: daPa_ | C95: 10
A96: mbar_ | B96: bar_ | C96: 0.001
A97: mbar_ | B97: mbar_ | C97: 1
A98: mbar_ | B98: mmCE_ | C98: 10.2
A99: mbar_ | B99: mCE_ | C99: 0.0102
A100: mbar_ | B100: mmHg_ | C100: 0.75
A101: mbar_ | B101: atm_ | C101: 0.000987
A102: mmCE_ | B102: Pa_ | C102: 9.81
A103: mmCE_ | B103: daPa_ | C103: 0.981
A104: mmCE_ | B104: kPa_ | C104: =C103/100 -> 0.00981
A105: mmCE_ | B105: bar_ | C105: 9.81e-05
A106: mmCE_ | B106: mbar_ | C106: 0.098
A107: mmCE_ | B107: mmCE_ | C107: 1
A108: mmCE_ | B108: mCE_ | C108: 0.001
A109: mmCE_ | B109: mmHg_ | C109: 0.073
A110: mmCE_ | B110: atm_ | C110: 9.68e-05
A111: mCE_ | B111: Pa_ | C111: 9810
A112: mCE_ | B112: daPa_ | C112: 981
A113: mCE_ | B113: kPa_ | C113: =C112/100 -> 9.81
A114: mCE_ | B114: bar_ | C114: 0.0981
A115: mCE_ | B115: mbar_ | C115: 98.1
A116: mCE_ | B116: mmCE_ | C116: 1000
A117: mCE_ | B117: mCE_ | C117: 1
A118: mCE_ | B118: mmHg_ | C118: 73
A119: mCE_ | B119: atm_ | C119: 0.0968
A120: mmHg_ | B120: Pa_ | C120: 133.3
A121: mmHg_ | B121: daPa_ | C121: 13.33
A122: mmHg_ | B122: kPa_ | C122: =C121/100 -> 0.1333
A123: mmHg_ | B123: bar_ | C123: 0.001333
A124: mmHg_ | B124: mbar_ | C124: 1.333
A125: mmHg_ | B125: mmCE_ | C125: 13.6
A126: mmHg_ | B126: mCE_ | C126: 0.0136
A127: mmHg_ | B127: mmHg_ | C127: 1
A128: mmHg_ | B128: atm_ | C128: 0.00132
A129: atm_ | B129: Pa_ | C129: 101300
A130: atm_ | B130: daPa_ | C130: 10130
A131: atm_ | B131: kPa_ | C131: =C130/100 -> 101.3
A132: atm_ | B132: bar_ | C132: 1.013
A133: atm_ | B133: mbar_ | C133: 1013
A134: atm_ | B134: mmCE_ | C134: 10330
A135: atm_ | B135: mCE_ | C135: 10.33
A136: atm_ | B136: mmHg_ | C136: 760
A137: atm_ | B137: atm_ | C137: 1
A139: Puissance
A141: Unité 1 | B141: Unité 2 | C141: Coeff | E141: Unité 1 | F141: Unité 2 | G141: Coeff
A142: kW_ | B142: kW_ | C142: 1 | E142: =CONCATENATE(calculs!B25,"_") -> W_ | F142: =CONCATENATE(calculs!C25,"_") -> th/h_ | G142: =DGET(A141:C177,3,E141:F142) -> 0.00086
A143: kW_ | B143: W_ | C143: 1000
A144: kW_ | B144: th/h_ | C144: 0.86
A145: kW_ | B145: kcal/h_ | C145: 860
A146: kW_ | B146: th/mn_ | C146: 0.0143
A147: kW_ | B147: mth/mn_ | C147: 14.3
A148: W_ | B148: kW_ | C148: 0.001
A149: W_ | B149: W_ | C149: 1
A150: W_ | B150: th/h_ | C150: 0.00086
A151: W_ | B151: kcal/h_ | C151: 0.86
A152: W_ | B152: th/mn_ | C152: 1.43e-05
A153: W_ | B153: mth/mn_ | C153: 0.0143
A154: th/h_ | B154: kW_ | C154: 1.163
A155: th/h_ | B155: W_ | C155: 1163
A156: th/h_ | B156: th/h_ | C156: 1
A157: th/h_ | B157: kcal/h_ | C157: 1000
A158: th/h_ | B158: th/mn_ | C158: 0.017
A159: th/h_ | B159: mth/mn_ | C159: 17
A160: kcal/h_ | B160: kW_ | C160: 0.001163
A161: kcal/h_ | B161: W_ | C161: 1.163
A162: kcal/h_ | B162: th/h_ | C162: 0.001
A163: kcal/h_ | B163: kcal/h_ | C163: 1
A164: kcal/h_ | B164: th/mn_ | C164: 1.7e-05
A165: kcal/h_ | B165: mth/mn_ | C165: 0.017
A166: th/mn_ | B166: kW_ | C166: 70
A167: th/mn_ | B167: W_ | C167: 70000
A168: th/mn_ | B168: th/h_ | C168: 60
A169: th/mn_ | B169: kcal/h_ | C169: 60000
A170: th/mn_ | B170: th/mn_ | C170: 1
A171: th/mn_ | B171: mth/mn_ | C171: 1000
A172: mth/mn_ | B172: kW_ | C172: 0.07
A173: mth/mn_ | B173: W_ | C173: 70
A174: mth/mn_ | B174: th/h_ | C174: 0.06
A175: mth/mn_ | B175: kcal/h_ | C175: 60
A176: mth/mn_ | B176: th/mn_ | C176: 0.001
A177: mth/mn_ | B177: mth/mn_ | C177: 1
A179: Energie
A181: Unité 1 | B181: Unité 2 | C181: Coeff | E181: Unité 1 | F181: Unité 2 | G181: Coeff
A182: kWh_ | B182: kWh_ | C182: 1 | E182: =CONCATENATE(calculs!B29,"_") -> th_ | F182: =CONCATENATE(calculs!C29,"_") -> mth_ | G182: =DGET(A181:C262,3,E181:F182) -> 1000
A183: kWh_ | B183: Wh_ | C183: 1000
A184: kWh_ | B184: kcal_ | C184: 860
A185: kWh_ | B185: mth_ | C185: 860
A186: kWh_ | B186: th_ | C186: 0.86
A187: kWh_ | B187: kth_ | C187: 0.00086
A188: kWh_ | B188: J_ | C188: 3600000
A189: kWh_ | B189: kJ_ | C189: 3600
A190: kWh_ | B190: MJ_ | C190: 3.6
A191: Wh_ | B191: kWh_ | C191: 0.001
A192: Wh_ | B192: Wh_ | C192: 1
A193: Wh_ | B193: kcal_ | C193: 0.86
A194: Wh_ | B194: mth_ | C194: 0.86
A195: Wh_ | B195: th_ | C195: 0.00086
A196: Wh_ | B196: kth_ | C196: 8.6e-07
A197: Wh_ | B197: J_ | C197: 3600
A198: Wh_ | B198: kJ_ | C198: 3.6
A199: Wh_ | B199: MJ_ | C199: 0.0036
A200: kcal_ | B200: kWh_ | C200: 0.001163
A201: kcal_ | B201: Wh_ | C201: 1.163
A202: kcal_ | B202: kcal_ | C202: 1
A203: kcal_ | B203: mth_ | C203: 1
A204: kcal_ | B204: th_ | C204: 0.001
A205: kcal_ | B205: kth_ | C205: 1e-06
A206: kcal_ | B206: J_ | C206: 4180
A207: kcal_ | B207: kJ_ | C207: 4.18
A208: kcal_ | B208: MJ_ | C208: 0.00418
A209: mth_ | B209: kWh_ | C209: 0.001163
A210: mth_ | B210: Wh_ | C210: 1.163
A211: mth_ | B211: kcal_ | C211: 1
... 78 more rows

Sheet calculs (hidden)
A1: conversions unités
A3: longueur
A4: v1 | B4: u1 | C4: u2 | D4: coeff | E4: v2
A5: ='Conversions d''unités'!G26 -> 0 | B5: ='Conversions d''unités'!H26 -> m | C5: ='Conversions d''unités'!L26 -> cm | D5: =Tableaux!G4 -> 100 | E5: =A5*D5 -> 0
A7: Surface
A8: v1 | B8: u1 | C8: u2 | D8: coeff | E8: v2
A9: ='Conversions d''unités'!G29 -> 0 | B9: ='Conversions d''unités'!H29 -> m2 | C9: ='Conversions d''unités'!L29 -> m2 | D9: =Tableaux!G24 -> 1 | E9: =A9*D9 -> 0
A11: Volume
A12: v1 | B12: u1 | C12: u2 | D12: coeff | E12: v2
A13: ='Conversions d''unités'!G32 -> 0 | B13: ='Conversions d''unités'!H32 -> dm3 | C13: ='Conversions d''unités'!L32 -> litres | D13: =Tableaux!G37 -> 1 | E13: =A13*D13 -> 0
A15: Température
A16: v1 | B16: u1 | C16: u2 | D16: v2
A17: ='Conversions d''unités'!G11 -> 0 | B17: ='Conversions d''unités'!H11 -> °C | C17: ='Conversions d''unités'!L11 -> °C | D17: =IF(AND(B17="°C",C17="K"),273.15+A17,IF(AND(B17="°C",C17="°F"),1.8*A17+32,IF(AND(B17="K",C17="°C"),A17-273.15,IF(AND(B17="K",C17="°F"),1.8*(A17-273.15)+32,IF(AND(B17="°F",C17="°C"),(A17-32)/1.8,IF(AND(B17="°F",C17="K"),(A17-32)/1.8+273.15,A17)))))) -> 0
A19: Pression
A20: v1 | B20: u1 | C20: u2 | D20: coeff | E20: v2
A21: ='Conversions d''unités'!G14 -> 0 | B21: ='Conversions d''unités'!H14 -> kPa | C21: ='Conversions d''unités'!L14 -> atm | D21: =Tableaux!G57 -> 0.00987 | E21: =A21*D21 -> 0
A23: Puissance
A24: v1 | B24: u1 | C24: u2 | D24: coeff | E24: v2
A25: ='Conversions d''unités'!G17 -> 0 | B25: ='Conversions d''unités'!H17 -> W | C25: ='Conversions d''unités'!L17 -> th/h | D25: =Tableaux!G142 -> 0.00086 | E25: =A25*D25 -> 0
A27: Energie
A28: v1 | B28: u1 | C28: u2 | D28: coeff | E28: v2
A29: ='Conversions d''unités'!G20 -> 0 | B29: ='Conversions d''unités'!H20 -> th | C29: ='Conversions d''unités'!L20 -> mth | D29: =Tableaux!G182 -> 1000 | E29: =A29*D29 -> 0
A31: Débit
A32: v1 | B32: u1 | C32: u2 | D32: coeff | E32: v2
A33: ='Conversions d''unités'!G23 -> 0 | B33: ='Conversions d''unités'!H23 -> m3/h | C33: ='Conversions d''unités'!L23 -> l/s | D33: =Tableaux!G267 -> 0.2777777778 | E33: =A33*D33 -> 0
A36: diamètres fluides
A38: conversion pouces - mm
A40: ='Conversions d''unités'!E64 -> 1" | B40: =Tableaux2!G3 -> 25.4
A42: tubes acier
A43: ='Conversions d''unités'!E68 -> 1" | B43: =Tableaux2!J22 -> 33.7 | C43: =Tableaux2!K22 -> 27.9 | D43: =Tableaux2!L22 -> 26 * 34 | E43: =Tableaux2!M22 -> 25
A46: Combustion
D47: pci | E47: pcs
A48: fioul : | B48: ='Conversions d''unités'!H37 -> 0 | C48: ='Conversions d''unités'!J37 -> litres | D48: =IF(C48="litres",B48*10.08) -> 0 | E48: =D48*1.06 -> 0
B49: ='Conversions d''unités'!E39 -> 0 | C49: kWh pCI | D49: =IF(E49="litres",B49/10.08) -> 0 | E49: ='Conversions d''unités'!N39 -> litres
A50: gaz | B50: ='Conversions d''unités'!H42 -> 0 | C50: Nm3 | D50: =9.45*B50 -> 0 | E50: =1.11*D50 -> 0
B51: ='Conversions d''unités'!E44 -> 0 | C51: kWh pCI | D51: =B51/9.45 -> 0 | E51: Nm3
A52: prop | B52: ='Conversions d''unités'!H49 -> 0 | C52: kg | D52: =12.88*B52 -> 0 | E52: =1.08*D52 -> 0
B53: ='Conversions d''unités'!E51 -> 0 | C53: kWh pCI | D53: =B53/12.88 -> 0 | E53: kg
A54: but | B54: ='Conversions d''unités'!H56 -> 0 | C54: kg | D54: =12.3*B54 -> 0 | E54: =13.369*B54 -> 0
B55: ='Conversions d''unités'!E58 -> 0 | C55: kWh pCI | D55: =B55/12.3 -> 0 | E55: kg
